[Event "Titled Tuesday Blitz May 23 Early 2023"]
[White "Lehtosaari, Mauri"]
[Black "Sarana, Alexey"]
[WhiteFideId "501999"]
[BlackFideId "24133795"]
[WhiteElo "2511"]
[BlackElo "2714"]
[Result "0-1"]
[Round "01"]
[TimeControl "180+2"]
[Date "2023.05.23"]
[WhiteClock "0:00:15"]
[BlackClock "0:00:54"]

1. d4 {[%clk 0:03:00]}  Nf6 {[%clk 0:02:57]} 2. Nf3 {[%clk 0:03:00]}  d5 {[%clk 0:02:52]} 3. Bg5 {[%clk 0:02:57]}  c6 {[%clk 0:02:51]} 4. Nbd2 {[%clk 0:02:56]}  Bf5 {[%clk 0:02:50]} 5. e3 {[%clk 0:02:54]}  Nbd7 {[%clk 0:02:50]} 6. c4 {[%clk 0:02:51]}  e6 {[%clk 0:02:50]} 7. Qb3 {[%clk 0:02:41]}  Qb6 {[%clk 0:02:49]} 8. c5 {[%clk 0:02:41]}  Qc7 {[%clk 0:02:49]} 9. Qd1 {[%clk 0:02:38]}  Be7 {[%clk 0:02:45]} 10. Bf4 {[%clk 0:02:36]}  Qc8 {[%clk 0:02:43]} 11. h3 {[%clk 0:02:37]}  a5 {[%clk 0:02:36]} 12. b3 {[%clk 0:02:29]}  b6 {[%clk 0:02:34]} 13. cxb6 {[%clk 0:02:24]}  Nxb6 {[%clk 0:02:35]} 14. Qc1 {[%clk 0:02:16]}  O-O {[%clk 0:02:31]} 15. Be2 {[%clk 0:02:16]}  h6 {[%clk 0:02:30]} 16. Ne5 {[%clk 0:02:11]}  c5 {[%clk 0:02:26]} 17. O-O {[%clk 0:02:10]}  cxd4 {[%clk 0:02:25]} 18. exd4 {[%clk 0:02:11]}  Qxc1 {[%clk 0:02:00]} 19. Raxc1 {[%clk 0:02:06]}  Ba3 {[%clk 0:02:01]} 20. Rc6 {[%clk 0:02:06]}  Nbd7 {[%clk 0:02:00]} 21. Nxd7 {[%clk 0:02:01]}  Nxd7 {[%clk 0:02:01]} 22. Bd6 {[%clk 0:02:02]}  Bxd6 {[%clk 0:01:52]} 23. Rxd6 {[%clk 0:02:03]}  Nf6 {[%clk 0:01:50]} 24. Rc1 {[%clk 0:02:02]}  Rfb8 {[%clk 0:01:50]} 25. Bd1 {[%clk 0:01:46]}  Kf8 {[%clk 0:01:45]} 26. Rdc6 {[%clk 0:01:15]}  Bd3 {[%clk 0:01:33]} 27. Nf3 {[%clk 0:01:10]}  Bb5 {[%clk 0:01:31]} 28. Rc7 {[%clk 0:01:10]}  Ne8 {[%clk 0:01:25]} 29. R7c5 {[%clk 0:01:10]}  Nd6 {[%clk 0:01:24]} 30. Ne5 {[%clk 0:01:05]}  Be8 {[%clk 0:01:25]} 31. g4 {[%clk 0:00:57]}  g5 {[%clk 0:01:19]} 32. Kh2 {[%clk 0:00:55]}  Ne4 {[%clk 0:01:05]} 33. R5c2 {[%clk 0:00:55]}  a4 {[%clk 0:01:06]} 34. bxa4 {[%clk 0:00:51]}  Rxa4 {[%clk 0:01:03]} 35. f3 {[%clk 0:00:45]}  Nd6 {[%clk 0:00:59]} 36. Be2 {[%clk 0:00:42]}  Rxd4 {[%clk 0:00:57]} 37. Rc7 {[%clk 0:00:39]}  Rd2 {[%clk 0:00:55]} 38. R1c2 {[%clk 0:00:15]}  Rb2 {[%clk 0:00:54]} 0-1


[Site "https://www.chess.com"]

[Event "Titled Tuesday Blitz May 23 Early 2023"]
[White "Chan, Luis"]
[Black "Martinez Alcantara, Jose Eduardo"]
[WhiteFideId "3216357"]
[BlackFideId "3805662"]
[WhiteElo "2127"]
[BlackElo "2711"]
[Result "0-1"]
[Round "01"]
[TimeControl "180+2"]
[Date "2023.05.23"]
[WhiteClock "0:00:01"]
[BlackClock "0:01:11"]

1. d4 {[%clk 0:03:00]}  Nf6 {[%clk 0:02:59]} 2. c4 {[%clk 0:03:00]}  e6 {[%clk 0:02:59]} 3. Nc3 {[%clk 0:03:01]}  Bb4 {[%clk 0:03:00]} 4. e3 {[%clk 0:03:01]}  O-O {[%clk 0:03:00]} 5. Ne2 {[%clk 0:03:01]}  d5 {[%clk 0:02:55]} 6. a3 {[%clk 0:02:59]}  Be7 {[%clk 0:02:55]} 7. cxd5 {[%clk 0:02:58]}  exd5 {[%clk 0:02:55]} 8. Nf4 {[%clk 0:02:58]}  c6 {[%clk 0:02:55]} 9. Bd3 {[%clk 0:02:58]}  Re8 {[%clk 0:02:40]} 10. O-O {[%clk 0:02:58]}  Bf8 {[%clk 0:02:39]} 11. h3 {[%clk 0:02:51]}  g6 {[%clk 0:02:26]} 12. b4 {[%clk 0:02:38]}  a5 {[%clk 0:02:25]} 13. Rb1 {[%clk 0:02:38]}  axb4 {[%clk 0:02:25]} 14. axb4 {[%clk 0:02:39]}  b5 {[%clk 0:02:20]} 15. Bd2 {[%clk 0:02:30]}  Nbd7 {[%clk 0:02:14]} 16. Re1 {[%clk 0:02:00]}  Nb6 {[%clk 0:02:00]} 17. e4 {[%clk 0:01:46]}  dxe4 {[%clk 0:02:00]} 18. Nxe4 {[%clk 0:01:47]}  Nxe4 {[%clk 0:02:00]} 19. Bxe4 {[%clk 0:01:48]}  Rxe4 {[%clk 0:02:01]} 20. Rxe4 {[%clk 0:01:48]}  Bf5 {[%clk 0:02:02]} 21. Qf3 {[%clk 0:01:02]}  Nc4 {[%clk 0:01:54]} 22. Be3 {[%clk 0:00:40]}  Nd6 {[%clk 0:01:48]} 23. Re5 {[%clk 0:00:25]}  Bxb1 {[%clk 0:01:47]} 24. Qxc6 {[%clk 0:00:23]}  Rc8 {[%clk 0:01:41]} 25. Qa6 {[%clk 0:00:20]}  Ra8 {[%clk 0:01:32]} 26. Qc6 {[%clk 0:00:20]}  Ba2 {[%clk 0:01:28]} 27. Kh2 {[%clk 0:00:16]}  Qc8 {[%clk 0:01:24]} 28. Qf3 {[%clk 0:00:13]}  Qb7 {[%clk 0:01:16]} 29. Nd5 {[%clk 0:00:07]}  Bxd5 {[%clk 0:01:15]} 30. Rxd5 {[%clk 0:00:08]}  Nc4 {[%clk 0:01:11]} 31. Rg5 {[%clk 0:00:03]}  Qxf3 {[%clk 0:01:11]} 32. gxf3 {[%clk 0:00:02]}  Nxe3 {[%clk 0:01:11]} 33. fxe3 {[%clk 0:00:01]}  Rb8 {[%clk 0:01:11]} 0-1


[Site "https://www.chess.com"]

[Event "Titled Tuesday Blitz May 23 Early 2023"]
[White "Bortnyk, Olexandr"]
[Black "Goltseva, Ekaterina"]
[WhiteFideId "14120828"]
[BlackFideId "24173770"]
[WhiteElo "2734"]
[BlackElo "2114"]
[Result "1-0"]
[Round "01"]
[TimeControl "180+2"]
[Date "2023.05.23"]
[WhiteClock "0:00:22"]
[BlackClock "0:00:01"]

1. d4 {[%clk 0:02:58]}  d5 {[%clk 0:02:58]} 2. Nc3 {[%clk 0:02:55]}  Nf6 {[%clk 0:02:57]} 3. Bf4 {[%clk 0:02:55]}  e6 {[%clk 0:02:55]} 4. Nb5 {[%clk 0:02:55]}  Na6 {[%clk 0:02:53]} 5. e3 {[%clk 0:02:54]}  Be7 {[%clk 0:02:52]} 6. Nf3 {[%clk 0:02:54]}  O-O {[%clk 0:02:51]} 7. h4 {[%clk 0:02:54]}  c6 {[%clk 0:02:51]} 8. Nc3 {[%clk 0:02:53]}  Qa5 {[%clk 0:02:50]} 9. Bd3 {[%clk 0:02:47]}  c5 {[%clk 0:02:42]} 10. O-O {[%clk 0:02:35]}  Nb4 {[%clk 0:02:34]} 11. a3 {[%clk 0:02:23]}  Nc6 {[%clk 0:02:29]} 12. dxc5 {[%clk 0:02:20]}  Qxc5 {[%clk 0:02:22]} 13. Nb5 {[%clk 0:02:17]}  Ne8 {[%clk 0:01:48]} 14. b4 {[%clk 0:02:04]}  Qb6 {[%clk 0:01:48]} 15. c4 {[%clk 0:02:05]}  a6 {[%clk 0:01:43]} 16. Nc3 {[%clk 0:01:23]}  Bf6 {[%clk 0:01:33]} 17. Rc1 {[%clk 0:01:18]}  d4 {[%clk 0:01:22]} 18. exd4 {[%clk 0:00:57]}  Nxd4 {[%clk 0:01:23]} 19. Ne4 {[%clk 0:00:56]}  Nf5 {[%clk 0:00:34]} 20. c5 {[%clk 0:00:50]}  Qd8 {[%clk 0:00:33]} 21. g3 {[%clk 0:00:50]}  Nc7 {[%clk 0:00:28]} 22. Nxf6+ {[%clk 0:00:49]}  gxf6 {[%clk 0:00:29]} 23. Bxf5 {[%clk 0:00:47]}  exf5 {[%clk 0:00:16]} 24. Qxd8 {[%clk 0:00:46]}  Rxd8 {[%clk 0:00:17]} 25. Bxc7 {[%clk 0:00:46]}  Rd3 {[%clk 0:00:17]} 26. Kg2 {[%clk 0:00:35]}  Be6 {[%clk 0:00:15]} 27. Rfd1 {[%clk 0:00:34]}  Rxa3 {[%clk 0:00:15]} 28. Nd4 {[%clk 0:00:25]}  Bd5+ {[%clk 0:00:15]} 29. Kh2 {[%clk 0:00:26]}  Be4 {[%clk 0:00:15]} 30. Rd2 {[%clk 0:00:26]}  Rc8 {[%clk 0:00:14]} 31. Bb6 {[%clk 0:00:25]}  Ra4 {[%clk 0:00:08]} 32. f3 {[%clk 0:00:25]}  Rxb4 {[%clk 0:00:06]} 33. fxe4 {[%clk 0:00:23]}  Rxb6 {[%clk 0:00:06]} 34. cxb6 {[%clk 0:00:24]}  Rxc1 {[%clk 0:00:06]} 35. Nxf5 {[%clk 0:00:25]}  h5 {[%clk 0:00:05]} 36. Rd7 {[%clk 0:00:20]}  Rc2+ {[%clk 0:00:04]} 37. Kh3 {[%clk 0:00:20]}  Rb2 {[%clk 0:00:04]} 38. Rxb7 {[%clk 0:00:20]}  a5 {[%clk 0:00:05]} 39. Rb8+ {[%clk 0:00:20]}  Kh7 {[%clk 0:00:05]} 40. b7 {[%clk 0:00:21]}  a4 {[%clk 0:00:01]} 41. Nd6 {[%clk 0:00:22]} 1-0


[Site "https://www.chess.com"]

[Event "Titled Tuesday Blitz May 23 Early 2023"]
[White "Korkmaz, Necmettin"]
[Black "Grischuk, Alexander"]
[WhiteFideId "6303285"]
[BlackFideId "4126025"]
[WhiteElo "2097"]
[BlackElo "2721"]
[Result "0-1"]
[Round "01"]
[TimeControl "180+2"]
[Date "2023.05.23"]
[WhiteClock "0:00:14"]
[BlackClock "0:00:03"]

1. e4 {[%clk 0:02:59]}  e6 {[%clk 0:03:00]} 2. d3 {[%clk 0:02:58]}  c5 {[%clk 0:02:59]} 3. Nd2 {[%clk 0:02:57]}  Nc6 {[%clk 0:02:59]} 4. Ngf3 {[%clk 0:02:57]}  g6 {[%clk 0:02:57]} 5. g3 {[%clk 0:02:57]}  Bg7 {[%clk 0:02:57]} 6. Bg2 {[%clk 0:02:57]}  Nge7 {[%clk 0:02:58]} 7. O-O {[%clk 0:02:57]}  O-O {[%clk 0:02:58]} 8. Re1 {[%clk 0:02:57]}  d6 {[%clk 0:02:58]} 9. Nf1 {[%clk 0:02:56]}  e5 {[%clk 0:02:47]} 10. c4 {[%clk 0:02:51]}  h6 {[%clk 0:02:46]} 11. Ne3 {[%clk 0:02:50]}  a6 {[%clk 0:02:41]} 12. Nd5 {[%clk 0:02:48]}  b5 {[%clk 0:02:35]} 13. b3 {[%clk 0:02:44]}  Rb8 {[%clk 0:02:28]} 14. h3 {[%clk 0:02:42]}  Nxd5 {[%clk 0:02:25]} 15. cxd5 {[%clk 0:02:39]}  Ne7 {[%clk 0:02:26]} 16. g4 {[%clk 0:02:33]}  f5 {[%clk 0:02:22]} 17. g5 {[%clk 0:02:25]}  f4 {[%clk 0:02:17]} 18. gxh6 {[%clk 0:02:21]}  Bxh6 {[%clk 0:02:18]} 19. Kh2 {[%clk 0:02:20]}  Kh7 {[%clk 0:02:15]} 20. Rg1 {[%clk 0:02:19]}  Ng8 {[%clk 0:02:13]} 21. Rh1 {[%clk 0:02:11]}  Nf6 {[%clk 0:01:59]} 22. Kg1 {[%clk 0:02:04]}  Rg8 {[%clk 0:01:55]} 23. Nh2 {[%clk 0:01:56]}  Kg7 {[%clk 0:01:33]} 24. Kf1 {[%clk 0:01:54]}  Bd7 {[%clk 0:01:32]} 25. Ng4 {[%clk 0:01:49]}  Nxg4 {[%clk 0:01:32]} 26. hxg4 {[%clk 0:01:47]}  Bg5 {[%clk 0:01:32]} 27. Bf3 {[%clk 0:01:44]}  a5 {[%clk 0:01:26]} 28. Ke2 {[%clk 0:01:39]}  Bh4 {[%clk 0:01:20]} 29. Bd2 {[%clk 0:01:31]}  Rh8 {[%clk 0:01:19]} 30. Rh2 {[%clk 0:01:26]}  Qc8 {[%clk 0:01:07]} 31. Qg1 {[%clk 0:01:25]}  g5 {[%clk 0:01:03]} 32. Rg2 {[%clk 0:01:12]}  Qa6 {[%clk 0:00:57]} 33. Qc1 {[%clk 0:01:10]}  Rhc8 {[%clk 0:00:54]} 34. Qa3 {[%clk 0:01:07]}  b4 {[%clk 0:00:39]} 35. Qc1 {[%clk 0:01:06]}  Bb5 {[%clk 0:00:35]} 36. Qc2 {[%clk 0:01:05]}  a4 {[%clk 0:00:36]} 37. Rgg1 {[%clk 0:01:05]}  Ra8 {[%clk 0:00:35]} 38. Rh1 {[%clk 0:01:03]}  Ra7 {[%clk 0:00:33]} 39. Rxh4 {[%clk 0:01:01]}  gxh4 {[%clk 0:00:33]} 40. Rh1 {[%clk 0:01:01]}  axb3 {[%clk 0:00:33]} 41. axb3 {[%clk 0:01:01]}  Qa2 {[%clk 0:00:34]} 42. Qd1 {[%clk 0:00:59]}  Rh8 {[%clk 0:00:27]} 43. g5 {[%clk 0:00:58]}  Qb2 {[%clk 0:00:27]} 44. Bg4 {[%clk 0:00:55]}  Ra2 {[%clk 0:00:27]} 45. Be6 {[%clk 0:00:48]}  f3+ {[%clk 0:00:12]} 46. Kxf3 {[%clk 0:00:42]}  Qd4 {[%clk 0:00:09]} 47. Be3 {[%clk 0:00:39]}  Qxd3 {[%clk 0:00:09]} 48. Qxd3 {[%clk 0:00:30]}  Bxd3 {[%clk 0:00:10]} 49. Bf5 {[%clk 0:00:30]}  Bc2 {[%clk 0:00:09]} 50. Kg4 {[%clk 0:00:28]}  Bxb3 {[%clk 0:00:09]} 51. g6 {[%clk 0:00:26]}  Bc4 {[%clk 0:00:07]} 52. Rxh4 {[%clk 0:00:24]}  Rxh4+ {[%clk 0:00:06]} 53. Kxh4 {[%clk 0:00:25]}  Ra1 {[%clk 0:00:06]} 54. f4 {[%clk 0:00:17]}  b3 {[%clk 0:00:06]} 55. fxe5 {[%clk 0:00:17]}  b2 {[%clk 0:00:05]} 56. Be6 {[%clk 0:00:15]}  b1=Q {[%clk 0:00:05]} 57. Kg5 {[%clk 0:00:16]}  Qe1 {[%clk 0:00:03]} 58. Bf4 {[%clk 0:00:16]}  Qg1+ {[%clk 0:00:04]} 59. Kf5 {[%clk 0:00:16]}  Rf1 {[%clk 0:00:03]} 60. Bf7 {[%clk 0:00:15]}  Qg3 {[%clk 0:00:03]} 61. Ke6 {[%clk 0:00:15]}  Qxf4 {[%clk 0:00:03]} 62. Ke7 {[%clk 0:00:16]}  Qxe5+ {[%clk 0:00:03]} 63. Kd7 {[%clk 0:00:16]}  Rxf7+ {[%clk 0:00:03]} 64. Kc6 {[%clk 0:00:14]}  Rf6 {[%clk 0:00:03]} 0-1


[Site "https://www.chess.com"]

[Event "Titled Tuesday Blitz May 23 Early 2023"]
[White "Sviridov, Valery"]
[Black "Martic, Ivan"]
[WhiteFideId "4120680"]
[BlackFideId "929301"]
[WhiteElo "2457"]
[BlackElo "2360"]
[Result "1/2-1/2"]
[Round "01"]
[TimeControl "180+2"]
[Date "2023.05.23"]
[WhiteClock "0:00:41"]
[BlackClock "0:00:09"]

1. d4 {[%clk 0:03:00]}  Nf6 {[%clk 0:02:59]} 2. Nf3 {[%clk 0:03:00]}  g6 {[%clk 0:02:59]} 3. g3 {[%clk 0:03:00]}  Bg7 {[%clk 0:02:59]} 4. Bg2 {[%clk 0:03:01]}  O-O {[%clk 0:03:00]} 5. O-O {[%clk 0:03:02]}  d6 {[%clk 0:02:59]} 6. c4 {[%clk 0:03:02]}  Nbd7 {[%clk 0:02:58]} 7. Nc3 {[%clk 0:03:03]}  e5 {[%clk 0:02:58]} 8. e4 {[%clk 0:03:03]}  c6 {[%clk 0:02:59]} 9. h3 {[%clk 0:03:03]}  Qb6 {[%clk 0:02:59]} 10. dxe5 {[%clk 0:03:02]}  dxe5 {[%clk 0:02:54]} 11. Qc2 {[%clk 0:03:02]}  Re8 {[%clk 0:02:43]} 12. Be3 {[%clk 0:03:02]}  Qc7 {[%clk 0:02:15]} 13. Rfd1 {[%clk 0:03:02]}  Nh5 {[%clk 0:02:03]} 14. c5 {[%clk 0:03:01]}  a5 {[%clk 0:01:59]} 15. Nd2 {[%clk 0:02:57]}  Bf8 {[%clk 0:01:58]} 16. Na4 {[%clk 0:02:56]}  Ndf6 {[%clk 0:01:44]} 17. Nc4 {[%clk 0:02:56]}  Be6 {[%clk 0:01:42]} 18. Nd6 {[%clk 0:02:55]}  Red8 {[%clk 0:01:39]} 19. Rd3 {[%clk 0:02:22]}  Bxd6 {[%clk 0:01:25]} 20. cxd6 {[%clk 0:02:23]}  Rxd6 {[%clk 0:01:25]} 21. Bb6 {[%clk 0:02:24]}  Qd7 {[%clk 0:01:20]} 22. Nc5 {[%clk 0:02:24]}  Qe7 {[%clk 0:01:18]} 23. Rxd6 {[%clk 0:02:17]}  Qxd6 {[%clk 0:01:19]} 24. Nxb7 {[%clk 0:01:52]}  Qb8 {[%clk 0:01:10]} 25. Qxc6 {[%clk 0:01:52]}  Bd7 {[%clk 0:01:08]} 26. Qc7 {[%clk 0:01:53]}  Qxc7 {[%clk 0:01:06]} 27. Bxc7 {[%clk 0:01:54]}  Ra7 {[%clk 0:01:07]} 28. Bxe5 {[%clk 0:01:55]}  Rxb7 {[%clk 0:01:05]} 29. g4 {[%clk 0:01:55]}  Rb5 {[%clk 0:00:54]} 30. Bc3 {[%clk 0:01:54]}  Nxg4 {[%clk 0:00:39]} 31. hxg4 {[%clk 0:01:55]}  Bxg4 {[%clk 0:00:39]} 32. f3 {[%clk 0:01:50]}  Be6 {[%clk 0:00:38]} 33. Rd1 {[%clk 0:01:51]}  f6 {[%clk 0:00:37]} 34. Rd8+ {[%clk 0:01:48]}  Kf7 {[%clk 0:00:37]} 35. Bf1 {[%clk 0:01:48]}  Rg5+ {[%clk 0:00:33]} 36. Kf2 {[%clk 0:01:48]}  Ng3 {[%clk 0:00:22]} 37. Bd3 {[%clk 0:01:36]}  Bxa2 {[%clk 0:00:14]} 38. Rd7+ {[%clk 0:01:36]}  Ke6 {[%clk 0:00:12]} 39. Rxh7 {[%clk 0:01:36]}  Nh5 {[%clk 0:00:10]} 40. Ra7 {[%clk 0:01:34]}  Nf4 {[%clk 0:00:09]} 41. Bf1 {[%clk 0:01:35]}  Bb1 {[%clk 0:00:05]} 42. Rxa5 {[%clk 0:01:34]}  Rxa5 {[%clk 0:00:03]} 43. Bxa5 {[%clk 0:01:35]}  Nd3+ {[%clk 0:00:04]} 44. Ke3 {[%clk 0:01:24]}  Nxb2 {[%clk 0:00:03]} 45. Be2 {[%clk 0:01:17]}  Ba2 {[%clk 0:00:03]} 46. Bc3 {[%clk 0:01:15]}  Nc4+ {[%clk 0:00:01]} 47. Kd4 {[%clk 0:01:16]}  Ne5 {[%clk 0:00:01]} 48. f4 {[%clk 0:01:16]}  Nc6+ {[%clk 0:00:01]} 49. Kc5 {[%clk 0:01:17]}  Ne7 {[%clk 0:00:01]} 50. Bf1 {[%clk 0:01:07]}  Kf7 {[%clk 0:00:02]} 51. Kd6 {[%clk 0:01:07]}  Be6 {[%clk 0:00:02]} 52. Ba6 {[%clk 0:01:04]}  Nc8+ {[%clk 0:00:03]} 53. Kc7 {[%clk 0:01:04]}  Ne7 {[%clk 0:00:03]} 54. Bd3 {[%clk 0:01:04]}  f5 {[%clk 0:00:03]} 55. Kd6 {[%clk 0:01:01]}  fxe4 {[%clk 0:00:03]} 56. Bxe4 {[%clk 0:01:02]}  Nf5+ {[%clk 0:00:03]} 57. Ke5 {[%clk 0:01:02]}  Ne7 {[%clk 0:00:04]} 58. Bb4 {[%clk 0:01:01]}  Nf5 {[%clk 0:00:03]} 59. Bd3 {[%clk 0:01:01]}  Ng7 {[%clk 0:00:03]} 60. Be2 {[%clk 0:00:57]}  Nf5 {[%clk 0:00:03]} 61. Bf3 {[%clk 0:00:57]}  Ng7 {[%clk 0:00:02]} 62. Be4 {[%clk 0:00:54]}  Nf5 {[%clk 0:00:02]} 63. Bc3 {[%clk 0:00:52]}  Ng7 {[%clk 0:00:02]} 64. Kd6 {[%clk 0:00:52]}  Nf5+ {[%clk 0:00:03]} 65. Kc7 {[%clk 0:00:53]}  Ne7 {[%clk 0:00:03]} 66. Be5 {[%clk 0:00:49]}  Nf5 {[%clk 0:00:03]} 67. Kd8 {[%clk 0:00:49]}  Ne7 {[%clk 0:00:03]} 68. Bd6 {[%clk 0:00:47]}  Nf5 {[%clk 0:00:04]} 69. Bc5 {[%clk 0:00:47]}  Ng7 {[%clk 0:00:04]} 70. Kc7 {[%clk 0:00:45]}  Nf5 {[%clk 0:00:04]} 71. Kb6 {[%clk 0:00:46]}  Ne7 {[%clk 0:00:04]} 72. Kb5 {[%clk 0:00:44]}  Nf5 {[%clk 0:00:04]} 73. Kb4 {[%clk 0:00:44]}  Ng3 {[%clk 0:00:05]} 74. Bc2 {[%clk 0:00:43]}  Nf5 {[%clk 0:00:05]} 75. Kc3 {[%clk 0:00:43]}  Ng7 {[%clk 0:00:06]} 76. Kd4 {[%clk 0:00:43]}  Nf5+ {[%clk 0:00:06]} 77. Ke4 {[%clk 0:00:43]}  Ng7 {[%clk 0:00:06]} 78. Kf3 {[%clk 0:00:44]}  Nf5 {[%clk 0:00:07]} 79. Bb1 {[%clk 0:00:42]}  Ng7 {[%clk 0:00:07]} 80. Ba3 {[%clk 0:00:41]}  Bf5 {[%clk 0:00:08]} 81. Ba2+ {[%clk 0:00:41]}  Be6 {[%clk 0:00:09]} 82. Bb1 {[%clk 0:00:40]}  Bf5 {[%clk 0:00:09]} 83. Ba2+ {[%clk 0:00:40]}  Be6 {[%clk 0:00:09]} 84. Bb1 {[%clk 0:00:41]} 1/2-1/2


[Site "https://www.chess.com"]

[Event "Titled Tuesday Blitz May 23 Early 2023"]
[White "Hakobyan, Aram"]
[Black "Hnydiuk, Aleksander"]
[WhiteFideId "13306677"]
[BlackFideId "1109057"]
[WhiteElo "2584"]
[BlackElo "2374"]
[Result "1-0"]
[Round "01"]
[TimeControl "180+2"]
[Date "2023.05.23"]
[WhiteClock "0:00:44"]
[BlackClock "0:00:00"]

1. d4 {[%clk 0:03:00]}  d5 {[%clk 0:02:58]} 2. c4 {[%clk 0:03:00]}  c6 {[%clk 0:02:58]} 3. cxd5 {[%clk 0:03:00]}  cxd5 {[%clk 0:02:58]} 4. Nc3 {[%clk 0:03:01]}  Nf6 {[%clk 0:02:58]} 5. Bf4 {[%clk 0:03:01]}  Nc6 {[%clk 0:02:58]} 6. Nf3 {[%clk 0:03:01]}  a6 {[%clk 0:02:55]} 7. Ne5 {[%clk 0:02:59]}  e6 {[%clk 0:02:50]} 8. e3 {[%clk 0:02:58]}  Bd6 {[%clk 0:02:45]} 9. Nxc6 {[%clk 0:02:47]}  bxc6 {[%clk 0:02:45]} 10. Bxd6 {[%clk 0:02:40]}  Qxd6 {[%clk 0:02:46]} 11. Bd3 {[%clk 0:02:40]}  c5 {[%clk 0:02:21]} 12. Qa4+ {[%clk 0:02:40]}  Bd7 {[%clk 0:02:16]} 13. Qa3 {[%clk 0:02:40]}  O-O {[%clk 0:01:58]} 14. dxc5 {[%clk 0:02:33]}  Qe5 {[%clk 0:01:57]} 15. Ne2 {[%clk 0:02:05]}  Rfb8 {[%clk 0:01:12]} 16. Rb1 {[%clk 0:01:58]}  a5 {[%clk 0:00:51]} 17. O-O {[%clk 0:01:55]}  Rb4 {[%clk 0:00:50]} 18. Qc3 {[%clk 0:01:38]}  Qh5 {[%clk 0:00:28]} 19. Nf4 {[%clk 0:01:28]}  Qh6 {[%clk 0:00:25]} 20. c6 {[%clk 0:01:22]}  Bc8 {[%clk 0:00:23]} 21. a3 {[%clk 0:01:20]}  Rb6 {[%clk 0:00:13]} 22. Qc5 {[%clk 0:01:11]}  Rb3 {[%clk 0:00:12]} 23. Bc2 {[%clk 0:01:04]}  Rbb8 {[%clk 0:00:10]} 24. c7 {[%clk 0:00:58]}  Rb7 {[%clk 0:00:09]} 25. Qe7 {[%clk 0:00:58]}  g5 {[%clk 0:00:06]} 26. Nd3 {[%clk 0:00:44]}  Kg7 {[%clk 0:00:06]} 27. Ne5 {[%clk 0:00:44]}  Qh5 {[%clk 0:00:05]} 28. Bg6 {[%clk 0:00:44]}  hxg6 {[%clk 0:00:03]} 29. Qxf7+ {[%clk 0:00:44]}  Kh6 {[%clk 0:00:00]} 30. Qxf6 {[%clk 0:00:44]} 1-0


[Site "https://www.chess.com"]

[Event "Titled Tuesday Blitz May 23 Early 2023"]
[White "Omariev, Maksim"]
[Black "Cordova, Emilio"]
[WhiteFideId "4193423"]
[BlackFideId "3801497"]
[WhiteElo "2497"]
[BlackElo "2607"]
[Result "1/2-1/2"]
[Round "01"]
[TimeControl "180+2"]
[Date "2023.05.23"]
[WhiteClock "0:00:06"]
[BlackClock "0:00:32"]

1. g4 {[%clk 0:02:51]}  c6 {[%clk 0:02:43]} 2. Bg2 {[%clk 0:02:51]}  d5 {[%clk 0:02:44]} 3. h3 {[%clk 0:02:51]}  e5 {[%clk 0:02:43]} 4. d4 {[%clk 0:02:52]}  exd4 {[%clk 0:02:43]} 5. Qxd4 {[%clk 0:02:51]}  Nf6 {[%clk 0:02:43]} 6. g5 {[%clk 0:02:48]}  Nfd7 {[%clk 0:02:36]} 7. Nf3 {[%clk 0:02:43]}  Qb6 {[%clk 0:02:35]} 8. Nc3 {[%clk 0:02:31]}  Qxd4 {[%clk 0:02:30]} 9. Nxd4 {[%clk 0:02:31]}  h6 {[%clk 0:02:31]} 10. gxh6 {[%clk 0:02:26]}  g6 {[%clk 0:02:31]} 11. e4 {[%clk 0:02:10]}  dxe4 {[%clk 0:02:10]} 12. Nxe4 {[%clk 0:02:07]}  f5 {[%clk 0:02:10]} 13. Ng5 {[%clk 0:02:00]}  Bxh6 {[%clk 0:02:07]} 14. Bf4 {[%clk 0:01:34]}  Na6 {[%clk 0:02:00]} 15. O-O-O {[%clk 0:01:31]}  O-O {[%clk 0:02:00]} 16. Rhe1 {[%clk 0:00:51]}  Nf6 {[%clk 0:01:57]} 17. h4 {[%clk 0:00:43]}  Bd7 {[%clk 0:01:57]} 18. Re7 {[%clk 0:00:40]}  Rae8 {[%clk 0:01:56]} 19. Rde1 {[%clk 0:00:39]}  Rxe7 {[%clk 0:01:56]} 20. Rxe7 {[%clk 0:00:40]}  Re8 {[%clk 0:01:56]} 21. Rxe8+ {[%clk 0:00:35]}  Bxe8 {[%clk 0:01:56]} 22. Nde6 {[%clk 0:00:28]}  Bd7 {[%clk 0:01:49]} 23. a3 {[%clk 0:00:21]}  Nh5 {[%clk 0:01:32]} 24. Bd2 {[%clk 0:00:20]}  Ng7 {[%clk 0:01:23]} 25. Nd8 {[%clk 0:00:14]}  Bc8 {[%clk 0:01:20]} 26. Ndf7 {[%clk 0:00:13]}  Bxg5 {[%clk 0:01:17]} 27. Nxg5 {[%clk 0:00:14]}  Bd7 {[%clk 0:00:48]} 28. b4 {[%clk 0:00:14]}  Nc7 {[%clk 0:00:47]} 29. Be3 {[%clk 0:00:14]}  b6 {[%clk 0:00:47]} 30. Kb2 {[%clk 0:00:13]}  Nge6 {[%clk 0:00:46]} 31. c4 {[%clk 0:00:13]}  Nxg5 {[%clk 0:00:41]} 32. hxg5 {[%clk 0:00:14]}  Kf7 {[%clk 0:00:40]} 33. Kc3 {[%clk 0:00:13]}  Ne6 {[%clk 0:00:41]} 34. f4 {[%clk 0:00:13]}  Ke7 {[%clk 0:00:40]} 35. a4 {[%clk 0:00:11]}  Kd6 {[%clk 0:00:40]} 36. a5 {[%clk 0:00:11]}  c5 {[%clk 0:00:41]} 37. axb6 {[%clk 0:00:07]}  axb6 {[%clk 0:00:41]} 38. b5 {[%clk 0:00:06]}  Nc7 {[%clk 0:00:40]} 39. Bb7 {[%clk 0:00:05]}  Be6 {[%clk 0:00:40]} 40. Bf3 {[%clk 0:00:04]}  Bf7 {[%clk 0:00:39]} 41. Kd3 {[%clk 0:00:04]}  Ne6 {[%clk 0:00:39]} 42. Bd5 {[%clk 0:00:02]}  Nd8 {[%clk 0:00:34]} 43. Bf3 {[%clk 0:00:02]}  Be6 {[%clk 0:00:34]} 44. Bd2 {[%clk 0:00:02]}  Bc8 {[%clk 0:00:34]} 45. Bc3 {[%clk 0:00:02]}  Bb7 {[%clk 0:00:34]} 46. Be5+ {[%clk 0:00:02]}  Ke6 {[%clk 0:00:34]} 47. Be2 {[%clk 0:00:01]}  Be4+ {[%clk 0:00:33]} 48. Ke3 {[%clk 0:00:02]}  Kd7 {[%clk 0:00:33]} 49. Bd3 {[%clk 0:00:01]}  Bxd3 {[%clk 0:00:33]} 50. Kxd3 {[%clk 0:00:02]}  Nb7 {[%clk 0:00:34]} 51. Ke3 {[%clk 0:00:02]}  Na5 {[%clk 0:00:34]} 52. Kd3 {[%clk 0:00:03]}  Nb3 {[%clk 0:00:34]} 53. Kc3 {[%clk 0:00:03]}  Na5 {[%clk 0:00:34]} 54. Kd3 {[%clk 0:00:03]}  Nb7 {[%clk 0:00:33]} 55. Kc3 {[%clk 0:00:04]}  Nd8 {[%clk 0:00:34]} 56. Kd3 {[%clk 0:00:04]}  Nf7 {[%clk 0:00:35]} 57. Bf6 {[%clk 0:00:04]}  Kc7 {[%clk 0:00:35]} 58. Ke3 {[%clk 0:00:04]}  Nd6 {[%clk 0:00:34]} 59. Be5 {[%clk 0:00:04]}  Kd7 {[%clk 0:00:35]} 60. Bxd6 {[%clk 0:00:04]}  Kxd6 {[%clk 0:00:35]} 61. Kd3 {[%clk 0:00:05]}  Ke6 {[%clk 0:00:32]} 62. Ke3 {[%clk 0:00:06]} 1/2-1/2


[Site "https://www.chess.com"]